Cogmind - Beta 14 @@@ ROGUE MODE // 2024.09.06 @ 18:19:45 Player: Helstads_dog Result: Destroyed by AG-09K(h) with Bolt Gun Performance ------------- Evolutions (1) 500 Regions Visited (5) 1000 Robots Destroyed (108) 540 Value Destroyed (3122) 3122 Prototype IDs (14) 280 Alien Tech Used (0) 0 Bonus (596) 596 TOTAL SCORE: 6038 Bonus ------- High Alert Combat Kills 242 Follower Combat Kills 66 Registered with UFD 300 Friendly Fire -12 Cogmind --------- Core Integrity 0/400 Matter 290/300 Energy 33/280 System Corruption 1% Temperature Cool (0) Movement Core (950) Ox18 Location -9/Scraptown Parts ------- > --- POWER (1) -------- Cooled Ion Engine > --- PROPULSION (2) --- Armored Wheel > --- UTILITY (3) ------ Cooling System High-capacity Storage Unit > --- WEAPON (3) ------- Improved Medium Laser Improved Medium Laser > --- INVENTORY (20) --- Cooled Ion Engine Cooled Ion Engine Light Treads Armored Wheel Armored Wheel Armored Wheel Cooling System Hardened Light Armor Plating Drone Bay (2/2) Improved Medium Laser Light EM Pulse Cannon Light EM Pulse Cannon Improved Assault Rifle Improved Assault Rifle Improved Assault Rifle Junk Cannon (0) Peak State ------------ > --- POWER ------------ Cooled Ion Engine > --- PROPULSION ------- Improved Treads Armored Wheel > --- UTILITY ---------- Cooling System High-capacity Storage Unit Medium Armor Plating > --- WEAPON ----------- Thermic Laser Junk Cannon > --- INVENTORY -------- Cooled Ion Engine Cooled Ion Engine Light Treads Armored Wheel Armored Wheel Armored Wheel Cooling System Hardened Light Armor Plating Force Field Drone Bay Improved Medium Laser Improved Medium Laser Improved Medium Laser Light EM Pulse Cannon Light EM Pulse Cannon Improved Assault Rifle Improved Assault Rifle Improved Assault Rifle Grenade Launcher Plasma Cutter [Rating: 34] Favorites ----------- Power Cooled Ion Engine Engine Cooled Ion Engine Propulsion Armored Wheel Treads Improved Treads Leg Aluminum Leg Wheel Armored Wheel Utility High-capacity Storage Unit Device Heat Sink Storage High-capacity Storage Unit Processor Signal Interpreter Hackware Hacking Suite Protection Medium Armor Plating Weapon Light EM Pulse Cannon Energy Gun EM Pulse Gun Energy Cannon Light EM Pulse Cannon Ballistic Gun Improved Assault Rifle Ballistic Cannon Light Cannon Launcher Grenade Launcher Special Weapon Plasma Cutter Impact Weapon Hammer Slashing Weapon Greatsword Build | -11 -10 -9 -9 -9 -9 ------- Run | Yrd Mat Mat Sto Rec Scr Slots Evolved 2 | . . 2 . . . Power . | . . . . . . Propulsion . | . . . . . . Utility 1 | . . 1 . . . Weapon 1 | . . 1 . . . Parts Attached 90 | . 21 30 21 6 12 Power 7 | . 2 4 1 . . Engine 7 | . 2 4 1 . . Core . | . . . . . . Reactor . | . . . . . . Propulsion 16 | . 5 8 3 . . Treads 8 | . 2 4 2 . . Leg . | . . . . . . Wheel 8 | . 3 4 1 . . Hover . | . . . . . . Flight . | . . . . . . Utility 27 | . 9 6 7 4 1 Device 8 | . 1 1 3 2 1 Storage 3 | . 3 . . . . Processor 3 | . 2 1 . . . Hackware 1 | . . . 1 . . Protection 12 | . 3 4 3 2 . Artifact . | . . . . . . Weapon 40 | . 5 12 10 2 11 Energy Gun 8 | . . 4 1 . 3 Energy Cannon 4 | . . . 2 . 2 Ballistic Gun 8 | . 1 2 4 1 . Ballistic Cannon 6 | . 3 3 . . . Launcher 4 | . 1 3 . . . Special Weapon 7 | . . . 1 1 5 Impact Weapon 2 | . . . 2 . . Slashing Weapon 1 | . . . . . 1 Piercing Weapon . | . . . . . . Special Melee Weapon . | . . . . . . Unidentified Prototypes 1 | . . . . . 1 Parts Lost 18 | . 3 9 2 . 4 Power 2 | . 1 1 . . . Propulsion 5 | . 1 3 . . 1 Utility 4 | . . 1 1 . 2 Weapon 7 | . 1 4 1 . 1 Highest Loss Streak 4 | . 1 2 1 . 4 To Critical Strikes 1 | . . 1 . . . Average Slot Usage (%) 98 | . 95 99 99 100 96 Engine 11 | . 13 11 11 11 11 Treads 11 | . 12 11 11 11 10 Wheel 11 | . 12 10 11 11 11 Device 9 | . 1 11 11 11 11 Storage 11 | . 14 11 11 11 11 Protection 10 | . 8 10 10 11 10 Energy Gun 6 | . 4 14 6 . 2 Energy Cannon 10 | . . . 15 22 18 Ballistic Gun 7 | . 3 6 10 10 8 Ballistic Cannon 6 | . 19 12 . . . Peak Build Rating 34 | 6 8 18 23 24 34 Average Rating 17 | 6 7 14 20 23 23 On Entrance 13 | 6 6 8 18 22 23 Naked Turns . | . . . . . . Heaviest Build 72 | 13 54 61 65 68 72 Greatest Support 46 | 20 20 46 12 12 12 Greatest Overweight (x) 5 | . 5 5 5 5 5 Average Overweight (x) 4 | . 2 4 5 5 5 Largest Inventory Capacity 20 | 8 20 20 20 20 20 Average Capacity 19 | 8 14 20 20 20 20 Most Carried 20 | 6 16 20 20 20 20 Average Carried 17 | 6 9 17 19 19 19 Final Capacity 20 | 8 20 20 20 20 20 Final Carried 20 | 6 16 20 20 20 17 Class Distribution -------------------- 47% | Tank 23% | Commander-Tank 16% | Mutant 5% | Commander-Mutant 4% | Scavenger-Tank Dominant Class ---------------- Mutant | -10/Materials Tank | -9/Materials Tank | -9/Storage Tank | -9/Recycling Commander-Tank | -9/Scraptown Resources | -11 -10 -9 -9 -9 -9 ----------- Run | Yrd Mat Mat Sto Rec Scr Matter Collected 2243 | 200 510 1018 321 94 100 Remotely . | . . . . . . Salvage Created 3867 | . 461 1397 1257 521 231 Parts 240 | . 38 90 79 27 6 Haulers Intercepted 1 | . . . 1 . . Recyclers Shooed . | . . . . . . Parts Field Recycled . | . . . . . . Retrieved Matter . | . . . . . . Parts Self-Destructed . | . . . . . . Prevented . | . . . . . . Kills | -11 -10 -9 -9 -9 -9 ------- Run | Yrd Mat Mat Sto Rec Scr Combat Hostiles Destroyed 87 | . 17 37 22 7 4 Guns 34 | . 3 16 13 2 . Cannons 37 | . 14 10 7 4 2 AOE 12 | . . 11 . 1 . Classes Destroyed 17 | . 5 5 1 3 3 Worker 2 | . 1 1 . . . Builder 3 | . 1 1 1 . . Tunneler 1 | . . . . 1 . Hauler 1 | . . . 1 . . Recycler 3 | . . 2 1 . . Mechanic 2 | . . 2 . . . Operator 2 | . . 1 1 . . Watcher 7 | . 2 3 2 . . Swarmer 23 | . 6 14 3 . . Grunt 31 | . 11 12 8 . . Brawler 1 | . . . . 1 . Duelist 1 | . . 1 . . . Sentry 26 | . . 10 11 5 . Demolisher 1 | . . . . 1 . Ranger 1 | . . . . . 1 Guru 1 | . . . . . 1 Scrapper 2 | . . . . . 2 Best Kill Streak 9 | . 5 9 7 4 4 Combat Bots Only 5 | . 3 5 4 3 4 Max Kills in Single Turn 4 | . 1 4 2 2 1 Gunslinging . | . . . . . . Exploded 4 | . . 4 . 1 . Melee . | . . . . . . Uniques/NPCs Destroyed . | . . . . . . Combat | -11 -10 -9 -9 -9 -9 -------- Run | Yrd Mat Mat Sto Rec Scr Hostile Shots Fired 411 | . 87 167 81 4 72 Missed 115 | . 15 59 24 1 16 Damage Taken 3741 | . 745 1341 770 96 789 Core 517 | . 113 134 80 36 154 Absorbed by Shields 87 | . . . . 18 69 Regen/Repaired (Parts) 254 | . 93 . . . 161 Core Remaining (%) 77 | 100 54 . . . . Volleys Fired 225 | . 64 86 49 9 17 Largest 3 | . 2 3 3 3 3 Hottest 135 | . 70 135 135 135 132 Shots Fired 535 | . 125 223 138 25 24 Gun 280 | . 45 122 97 8 8 Cannon 227 | . 77 94 40 16 . Launcher 10 | . 3 7 . . . Special 18 | . . . 1 1 16 Kinetic 305 | . 101 148 48 8 . Thermal 82 | . 21 25 24 1 11 Explosive 10 | . 3 7 . . . Electromagnetic 125 | . . 43 66 16 . Impact 9 | . . . . . 9 Robot Hit Streak 30 | . 6 9 15 21 30 Robot Miss Streak 6 | . 6 3 2 . 2 Penetration Max . | . . . . . . Secondary Targets 3 | . 1 . 2 . . Max Gunslinging Chain 1 | . 1 . 1 . . Shots Hit Robots 330 | . 65 135 98 13 19 Core Hits 143 | . 26 65 40 10 2 Critical Kills 1 | . . 1 . . . Critical Parts Destroyed 1 | . . . . . 1 Critical Strikes 11 | . 1 6 3 . 1 Burn 3 | . . 1 2 . . Destroy 1 | . . 1 . . . Blast 3 | . 1 2 . . . Corrupt 3 | . . 2 1 . . Smash 1 | . . . . . 1 Melee Attacks 4 | . . . 4 . . Impact 4 | . . . 4 . . Slashing . | . . . . . . Piercing . | . . . . . . Sneak Attacks . | . . . . . . Combat Hostiles . | . . . . . . Follow-up Attacks . | . . . . . . Damage Inflicted 7062 | . 1156 2889 1757 528 732 Guns 2653 | . 278 1159 1066 32 118 Cannons 2764 | . 791 1074 643 256 . Explosions 1004 | . 87 656 36 225 . Melee . | . . . . . . Ramming 12 | . . . 12 . . Kinetic 3053 | . 952 1604 465 32 . Thermal 1096 | . 117 299 310 240 130 Explosive 743 | . 87 656 . . . Electromagnetic 1556 | . . 330 970 256 . Impact 602 | . . . . . 602 Slashing . | . . . . . . Piercing . | . . . . . . Highest Corruption 1 | . 1 . . . 1 Average Corruption 1 | . 1 . . . 1 Corruption Purged . | . . . . . . Corruption Blocked . | . . . . . . Effects 5 | . 5 . . . . Message Errors 1 | . 1 . . . . Matter Fused 1 | . 1 . . . . Heat Flow Errors 2 | . 2 . . . . Data Loss (minor) 1 | . 1 . . . . Overload Shots . | . . . . . . Overflow Damage 357 | . 19 14 . 54 270 Projectiles 320 | . 19 8 . 23 270 Explosions 37 | . . 6 . 31 . Melee . | . . . . . . Knockbacks 26 | . 8 15 . . 3 Impact 3 | . . . . . 3 Kinetic 22 | . 8 14 . . . Secondary 1 | . . 1 . . . Self-Inflicted Damage 39 | . . 3 . 36 . Shots 2 | . . 1 . 1 . Rammed 1 | . . . 1 . . Targets Rammed 3 | . . . 3 . . Kicked . | . . . . . . Crushed 2 | . . . 2 . . Highest Temperature 426 | . 426 204 207 93 . Average Temperature 62 | . 70 55 64 34 . Received Heat Transfer 961 | . 264 372 279 7 39 Effects 5 | . 5 . . . . Shutdowns 1 | . 1 . . . . Short Circuit 1 | . 1 . . . . Damage (minor) 1 | . 1 . . . . Damage (major) 2 | . 2 . . . . Siege Activations . | . . . . . . Robots Corrupted 4 | . . . 2 . 2 Combat Hostiles 4 | . . . 2 . 2 Parts Fried 11 | . . . 4 . 7 Impact Corruptions 5 | . . . . . 5 Robots Melted . | . . . . . . Combat Hostiles . | . . . . . . Parts Melted . | . . . . . . Heat Transferred 2557 | . 333 777 864 287 296 Parts Sabotaged . | . . . . . . Parts Stolen . | . . . . . . Parts Stripped . | . . . . . . Power Chain Reactions 3 | . . . 1 2 . Alert | -11 -10 -9 -9 -9 -9 ------- Run | Yrd Mat Mat Sto Rec Scr Peak Influence 722 | . 214 722 581 315 . Initial 228 | . . 42 228 162 . Average 253 | . 106 297 411 170 . Maximum Alert Level 3 | . 1 3 2 1 . Low Security (%) 49 | 100 93 40 . 68 . Level 1 24 | . 6 22 38 31 . Level 2 25 | . . 34 61 . . Level 3 1 | . . 2 . . . Level 4 . | . . . . . . Level 5 . | . . . . . . High Security . | . . . . . . Max Security . | . . . . . . Squads Dispatched 8 | . 2 2 4 . . Investigation 2 | . 2 . . . . Extermination . | . . . . . . Reinforcement 2 | . . 1 1 . . Assault 1 | . . 1 . . . Garrison 3 | . . . 3 . . Intercept . | . . . . . . Searches Triggered . | . . . . . . Construction Impeded . | . . . . . . Haulers Reinforced . | . . . . . . Active Scanning Responses . | . . . . . . Cargo Convoy Interrupts . | . . . . . . Stealth | -11 -10 -9 -9 -9 -9 --------- Run | Yrd Mat Mat Sto Rec Scr Distress Signals 8 | . 2 3 3 . . Communications Jammed . | . . . . . . Distress Signals . | . . . . . . Times Spotted 115 | . 25 52 26 3 9 Peak Tracking Total 7 | . 5 6 5 3 7 Tactical Retreats 2 | . . 2 . . . Traps | -11 -10 -9 -9 -9 -9 ------- Run | Yrd Mat Mat Sto Rec Scr Traps Triggered 2 | . . . 2 . . Indirectly . | . . . . . . Trap Hack Attempts . | . . . . . . Triggered . | . . . . . . Disarmed . | . . . . . . Reprogrammed . | . . . . . . Reused . | . . . . . . Traps Extracted . | . . . . . . Installed . | . . . . . . Triggered . | . . . . . . Machines | -11 -10 -9 -9 -9 -9 ---------- Run | Yrd Mat Mat Sto Rec Scr Machines Disabled 11 | . . 2 5 . 4 Max in Single Turn 1 | . . 1 1 . 1 Machines Repaired . | . . . . . . Machines Dismantled 2 | . . . 1 . 1 Machines Sabotaged . | . . . . . . Overloaded Fab Kills . | . . . . . . Hacking | -11 -10 -9 -9 -9 -9 --------- Run | Yrd Mat Mat Sto Rec Scr Machines Accessed 46 | . 10 11 9 12 4 Terminals 30 | . 7 9 8 6 . Fabricators . | . . . . . . Repair Stations 1 | . 1 . . . . Recycling Units 7 | . 2 . 1 4 . Scanalyzers 2 | . . 2 . . . Garrison Access . | . . . . . . Total Hacks 167 | . 28 31 22 58 28 Successful 114 | . 15 18 12 41 28 Failed 52 | . 13 13 10 16 . Catastrophic 4 | . 1 . 1 2 . Database Lockouts 1 | . . . . 1 . Manual 64 | . 18 17 13 16 . Terminals 91 | . 22 24 21 24 . Fabricators . | . . . . . . Repair Stations 2 | . 2 . . . . Recycling Units 15 | . 4 . 1 10 . Scanalyzers 7 | . . 7 . . . Garrison Access . | . . . . . . Terminal Hacks 84 | . 7 10 9 30 28 Record 53 | . . 1 . 24 28 Part Schematic 2 | . . . . 2 . Robot Analysis 7 | . 3 3 1 . . Prototype ID Bank 9 | . 2 2 3 2 . Open Door 2 | . . . 2 . . Terminal Index 2 | . . . 1 1 . Alert Level 3 | . . 1 1 1 . Unreport Threat 2 | . . 1 1 . . Locate Traps 4 | . 2 2 . . . Fabricator Hacks . | . . . . . . Repair Station Hacks 2 | . 2 . . . . Scan Component 1 | . 1 . . . . Repair 1 | . 1 . . . . Recycling Unit Hacks 8 | . 2 . 1 5 . Report Inventory 6 | . 2 . 1 3 . Retrieve Components 2 | . . . . 2 . Scanalyzer 5 | . . 5 . . . Insert Component 3 | . . 3 . . . Analyze 2 | . . 2 . . . Garrison Access Hacks . | . . . . . . Unauthorized Hacks 15 | . 4 3 2 6 . Terminals 9 | . 2 3 2 2 . Botnet 9 | . 2 3 2 2 . Fabricators . | . . . . . . Repair Stations . | . . . . . . Recycling Units 6 | . 2 . . 4 . Tunnel 6 | . 2 . . 4 . Scanalyzers . | . . . . . . Garrison Access . | . . . . . . Data Cores Recovered 1 | . . . 1 . . Used . | . . . . . . Hacking Detections 35 | . 8 10 9 8 . Full Trace Events 7 | . 1 . . 6 . Feedback Events 1 | . 1 . . . . Corruption 1 | . 1 . . . . Feedback Blocked . | . . . . . . Robot Schematics Acquired . | . . . . . . Robots Built . | . . . . . . Authchips . | . . . . . . Time . | . . . . . . Total Robot Build Rating . | . . . . . . Part Schematics Acquired 4 | . . 2 . 2 . Parts Built . | . . . . . . Authchips . | . . . . . . Time . | . . . . . . Total Part Build Rating . | . . . . . . Parts Repaired 1 | . 1 . . . . Time 26 | . 26 . . . . Parts Recycled . | . . . . . . Recycled Matter . | . . . . . . Retrieved Matter . | . . . . . . Retrieved Components 5 | . . . . 5 . Parts Scanalyzed 3 | . . 3 . . . Part Schematics Acquired 2 | . . 2 . . . Parts Damaged 1 | . . 1 . . . Bothacking | -11 -10 -9 -9 -9 -9 ------------ Run | Yrd Mat Mat Sto Rec Scr Used RIF Installer . | . . . . . . Robots Hacked . | . . . . . . Non-combat . | . . . . . . Combat . | . . . . . . Robot Hacks Applied . | . . . . . . Relay Couplers Released . | . . . . . . Fabnet Peak Effective % . | . . . . . . Robots Rewired 5 | . . . . 5 . Allies Hacked . | . . . . . . Hacks Repelled . | . . . . . . Allies | -11 -10 -9 -9 -9 -9 -------- Run | Yrd Mat Mat Sto Rec Scr Total Allies 5 | . . . . 5 . Largest Group 5 | . . . . 5 5 Highest-Rated Group 98 | . . . . 98 98 Highest-Rated Ally 27 | . . . . 27 27 Total Orders 3 | . . . 1 2 . AID 2 | . . . . 2 . EXPLORE 1 | . . . 1 . . Ally Attacks 16 | . . . . 3 13 Total Damage 178 | . . . . 22 156 Kills 2 | . . . . . 2 Allies Corrupted . | . . . . . . Allies Melted . | . . . . . . Intel | -11 -10 -9 -9 -9 -9 ------- Run | Yrd Mat Mat Sto Rec Scr Robot Analysis Total 7 | . 3 3 1 . . Derelict Logs Recovered . | . . . . . . Drone Launches 7 | . . . 7 . . Drone Recoveries 3 | . . . 3 . . Exploration | -11 -10 -9 -9 -9 -9 ------------- Run | Yrd Mat Mat Sto Rec Scr Turns Passed 8009 | 2 1282 2236 1282 1384 1823 Spaces Moved 4203 | 2 771 1070 553 767 1040 Core . | . . . . . . Treads 77 | . . 77 . . . Legs 76 | 2 74 . . . . Wheels 4050 | . 697 993 553 767 1040 Hover . | . . . . . . Flight . | . . . . . . Fastest Speed 95 | 120 95 150 165 165 165 Average Speed 158 | 120 123 168 165 165 165 Slowest Speed 320 | 120 155 320 165 165 165 Overloaded Moves . | . . . . . . Propulsion Burnouts . | . . . . . . Robots Hopped . | . . . . . . Cave-ins Triggered . | . . . . . . Exploration Rate (%) 73 | 1 98 98 81 99 66 Regions Visited 5 Branch Regions 3 Pre-discovered Areas 9 | . 2 . 1 4 2 Known Exits Taken 2 | . 1 1 . . . Unknown Exits Taken 3 | 1 . . 1 1 . Scrap Searched 9 | . . . . . 9 Spaces Dug . | . . . . . . Terrain Destroyed 72 | . 21 39 6 5 1 Melee . | . . . . . . Projectile 1 | . . . . . 1 AOE 71 | . 21 39 6 5 . Terrain Rammed . | . . . . . . Walls Destroyed . | . . . . . . Machines Disabled . | . . . . . . Actions | -11 -10 -9 -9 -9 -9 --------- Run | Yrd Mat Mat Sto Rec Scr Total 5076 | 1 977 1335 785 868 1110 Wait 316 | . 91 99 101 4 21 Move 4198 | 1 770 1069 552 766 1040 Hop . | . . . . . . Pick Up 61 | . 18 29 12 1 1 Fast Attach 16 | . 5 2 1 2 6 Attach 37 | . 7 16 8 . 6 Detach 11 | . 2 1 2 1 5 Swap 37 | . 9 12 12 4 . Drop 59 | . 11 21 14 5 8 Fire 225 | . 64 86 49 9 17 Melee 4 | . . . 4 . . Ram . | . . . . . . Kick . | . . . . . . Crush 3 | . . . 3 . . Escape Stasis 16 | . . . 16 . . Rewire 76 | . . . . 76 . Trap . | . . . . . . Miscellaneous 17 | . . . 11 . 6 Route ------- -11/Scrapyard -10/Materials (discovered 5 exits: *Mat x3 / [*Min x2]) -9/Materials (discovered 5 exits: *Mat x3 / [*Min] / *Sto) -9/Storage (discovered 2 exits: *Mat / *Rec) -9/Recycling (discovered 2 exits: [*Fac] / *Scr) -9/Scraptown (discovered 1 exit: [*Fac]) History --------- Turn | Location | Event 1 | -11/Scrapyard | Discovered new exit (range 1) 3 | -11/Scrapyard | Entered Materials 110 | -10/Materials | Discovered new exit (range 9) 315 | -10/Materials | Build established: Mutant 452 | -10/Materials | Discovered new exit (range 3) 590 | -10/Materials | Repaired Lgt. Treads 668 | -10/Materials | Discovered new exit (range 7) 732 | -10/Materials | Discovered new exit (range 6) 877 | -10/Materials | Discovered new exit (range 9) 996 | -10/Materials | Identified exit to Materials 1285 | -10/Materials | Entered another Materials area 1285 | -9/Materials | Evolved 2 slots: Utility x1, Weapon x1 1575 | -9/Materials | Build established: Tank 1631 | -9/Materials | Discovered new exit (range 15) 2266 | -9/Materials | Discovered new exit (range 11) 2389 | -9/Materials | Discovered new exit (range 16) 2495 | -9/Materials | Identified exit to Materials 2559 | -9/Materials | Identified exit to Storage 2885 | -9/Materials | First assault squad dispatched 2903 | -9/Materials | Discovered exit to Materials (range 16) 3180 | -9/Materials | Discovered new exit (range 16) 3521 | -9/Materials | Entered Storage 3770 | -9/Storage | Garrison activated, responded to threat 4130 | -9/Storage | Core integrity fell below 50% 4207 | -9/Storage | Learned location of Armory (-3) 4490 | -9/Storage | Discovered exit to Materials (range 15) 4795 | -9/Storage | Discovered new exit (range 3) 4803 | -9/Storage | Entered Recycling 5723 | -9/Recycling | Discovered new exit (range 5) 5920 | -9/Recycling | Build established: Commander-Tank 6107 | -9/Recycling | Scanned before Scraplab entrance 6169 | -9/Recycling | Entered Scraplab 6184 | -9/Recycling | Discovered new exit (range 3) 6187 | -9/Recycling | Entered Scraptown 6187 | -9/Scraptown | Accompanied by 5 allies 6710 | -9/Scraptown | Visited UFD Registry 6710 | -9/Scraptown | Registered with UFD as "Metalthruster" 6734 | -9/Scraptown | Visited CR-KLE's Repair Center 6746 | -9/Scraptown | CR-KLE repaired 4 parts 6792 | -9/Scraptown | Visited IN-MT5's Study 6988 | -9/Scraptown | Discovered new exit (range 5) 7090 | -9/Scraptown | Visited Cyclists 7105 | -9/Scraptown | Entered Cyclist Reading Room 7112 | -9/Scraptown | Learned location of Exiles (-9) 7112 | -9/Scraptown | Learned location of Zion (-7) 7151 | -9/Scraptown | Visited Assassins FH 7194 | -9/Scraptown | Visited Red Mages 7253 | -9/Scraptown | Visited Bundlers 7726 | -9/Scraptown | Visited Awakened 7816 | -9/Scraptown | Build established: Commander-Mutant 7829 | -9/Scraptown | Visited Junk Cannon Lab 7874 | -9/Scraptown | Found Prototype Special Weapon 7874 | -9/Scraptown | Identified Junk Cannon 7918 | -9/Scraptown | Attacked by Scraptown defenders 7993 | -9/Scraptown | Lost 5 allies 7996 | -9/Scraptown | Core integrity fell below 20% 8010 | -9/Scraptown | Destroyed by AG-09K(h) with Bolt Gun Last Messages --------------- 07962_ Penetrated by Bolt. 07963_ Junk Cannon collects and crushes Com. Battery. 07969_ Junk Cannon collects and crushes Ovr. Pulse Rifle (+1 shot). 07970_ Bolt penetrates Wall. 07978_ Penetrated by Bolt. 07980_ Critical hit (Impale). 07980_ Penetrated by Bolt. 07984_ Bolt penetrates JC Pilot Fab. 07986_ Penetrated by Bolt. 07986_ Bolt penetrates JC Pilot Fab. 07987_ Plasma Cutter destroyed. 07987_ Med. Armor Plating destroyed. 07991_ Critical hit (Impale). 07992_ Bolt penetrates JC Pilot Fab. 07995_ Penetrated by Bolt. 07997_ Bolt penetrates JC Pilot Fab. 08000_ Penetrated by Bolt. 08006_ Imp. Treads destroyed. 08008_ Bolt penetrates JC Pilot Fab. 08008_ Force Field destroyed. Map ----- +----------------------------------------------------+ | ?# #???????" "??????????????????????? | | ?# ###?????" "??????????????????????? | | ?# ""#?????" ""?????????????????????? | | ?# """"#???" ""# ???????????????????? | | ?# ""###???#" "" ???????????????????? | | ?# ###?????#" "" ????????????????????? | | ?# ######### ""#????????????????????? | | ?# ""#????????????????????? | | ?# ""#????????????????????? | | ?# ""#????????????????????? | | ?# ! ""#????? ?????????????? | | ## % ""###### ##???????????? | | """""""""""""??????????? | | """"""""""""""" "??????? | | ??????? | | *=[ ?????? | | %*[/*! [! ?????? | | #""""#" =[=%=[% %%! ?????? | | #????#"!=%=!% ! % !! ?????? | | #????#"""""! "" """"" "" """???????? | | ######## ####????#####;# ###########???????????? | | "#??# #????????# Eh% ! #????????????????? | | "#??# #????????# #????????????????? | | "#??# #????????# #????????????????? | | " "#??# #????????#""" x### ##????????????????? | | " "#??# #????????#" @"#? #????????????????? | | " "#??# #????????#"" "#? #????????????????? | | "#??# #????????#"" "# #????????????????? | | "#??# #????????#"" "# #????????????????? | | """"#??# #????????#"" "#|| #????????????????? | | #####??# #????????#""""""# |#????????????????? | | ???????# #????????#""""""#| #????????????????? | | ######## #????????#############????????????????? | | """""""" #?????????????????????????????????????? | | "" """"" #?????????????????????????????????????? | | " " "" #?????????????????????????????????????? | | #?????????????????????????????????????? | | "" "" " #?????????????????????????????????????? | | """""""" #?????????????????????????????????????? | | """""""" #?????????????????????????????????????? | | ######## #?????????????????????????????????????? | | ######## #?????????????????????????????????????? | | """""""# #?????????????????????????????????????? | | !/!] "# #?????????????????????????????????????? | | [ ![[ "# #?????????????????????????????????????? | | "# #?????????????????????????????????????? | | """""""# #?????????????????????????????????????? | | ! #?????????????????????????????????????? | | #?????????????????????????????????????? | | """ """#####?????????????????????????????????????? | +----------------------------------------------------+ Best States ------------- Heat Dissipation 50 Energy Generation 14 Energy Capacity 280 Matter Stores 300 Matter Capacity 300 Sight Range 16 Terrain Scan Density 10 Armor Coverage 225 Evasion (%) 55 Recoil Reduction 2 Item Schematics ----------------- Lrg. Storage Unit | -9/Materials | Scanalyzed Arm. Wheel | -9/Materials | Scanalyzed Imp. Shield Generator | -9/Recycling | Hacked Imp. Datajack | -9/Recycling | Hacked Robot Schematics ------------------ None Fabricated ------------ Nothing Alien Tech Used ----------------- None Achievements -------------- Brute Force Challenges ------------ None Game ------ Seed HeartFissionAirjet Manual? 0 Play Time 01:49:59 Cumulative 64.8 hours Start 2024.09.06 @ 16:24:07 End 2024.09.06 @ 18:19:45 Sessions 1 Manual Loads 0 Difficulty Rogue Special Mode None Game No. 36 Rogue 36 Adventurer 0 Explorer 0 Win Type - Total 0 Types 0/0/0/0/0/0/0/0/0 Lore% 25 Gallery% 27 Achievement% 32 Wizard Run 0 Options --------- Layout 0 ASCII 0 Keyboard 0 Movement Mouse Keybinds 0 Fullscreen 1 Font 16/SmallcapsGlow Map View 37x27 Zoom Use 88% Tactical HUD 1 Map Filters NONE Filters NONE Steam X RUN: 47ac2544-1dab-40b1-83b1-c2c05e856694